fUST/lending_fUST_20251206
["ID","MTS","AMOUNT","RATE_DAILY","PERIOD"]
[396423593,1764964287829,-981.84,0.00017534,2]
[396423594,1764964287840,-500.0,0.00017534,2]
[396423595,1764964287850,-500.0,0.00017534,2]
[396423596,1764964287859,-500.0,0.00017534,2]
[396423597,1764964287869,-8333.33,0.00017534,2]
[396423598,1764964287879,-505.07,0.00017534,2]
[396423599,1764964287888,-3168.21,0.00017534,2]
[396423600,1764964287898,-8522.94,0.00017534,2]
[396423601,1764964287907,-500.0,0.00017534,2]
[396423602,1764964287916,-2974.3,0.00017534,2]
[396423603,1764964287926,-882.76,0.00017534,2]
[396423604,1764964287936,-500.0,0.00017534,2]
[396423605,1764964287945,-500.0,0.00017534,2]
[396423606,1764964287956,-773.39,0.00017534,2]
[396423607,1764964287966,-500.0,0.00017534,2]
[396423608,1764964287976,-500.0,0.00017534,2]
[396423609,1764964287985,-500.0,0.00017534,2]
[396423610,1764964287994,-500.0,0.00017534,2]
[396423611,1764964288007,-1466.62,0.00017534,2]
[396423612,1764964288016,-500.0,0.00017534,2]
[396423613,1764964288025,-500.0,0.00017534,2]
[396423614,1764964288034,-1900.64,0.00017534,2]
[396423615,1764964288044,-169.728144,0.00017534,2]
[396423616,1764964288054,-5166.32,0.00017534,2]
[396423617,1764964288063,-500.0,0.00017534,2]
[396423618,1764964288072,-559.78,0.00017534,2]
[396423619,1764964288085,-500.0,0.00017534,2]
[396423620,1764964288094,-500.0,0.00017534,2]
[396423621,1764964288103,-579.43,0.00017534,2]
[396423622,1764964288113,-1126.56,0.00017534,2]
[396423623,1764964288123,-531.72,0.00017534,2]
[396423624,1764964288132,-500.0,0.00017534,2]
[396423625,1764964288142,-1357.94,0.00017534,2]
[396423626,1764964288151,-7493.2,0.00017534,2]
[396423627,1764964288161,-500.0,0.00017534,2]
[396423628,1764964288170,-500.0,0.00017534,2]
[396423629,1764964288180,-2140.67,0.00017534,2]
[396423630,1764964288190,-504.84,0.00017534,2]
[396423631,1764964288200,-500.0,0.00017534,2]
[396423632,1764964288210,-1456.29,0.00017534,2]
[396423633,1764964288220,-1852.77,0.00017534,2]
[396423634,1764964288230,-5290.3,0.00017534,2]
[396423635,1764964288240,-500.0,0.00017534,2]
[396423636,1764964288249,-18021.5,0.00017534,2]
[396423637,1764964288259,-500.0,0.00017534,2]
[396423638,1764964288269,-5946.49,0.00017534,2]
[396423639,1764964288279,-1141.14,0.00017534,2]
[396423640,1764964288289,-500.0,0.00017534,2]
[396423641,1764964288299,-5755.4,0.00017534,2]
[396423642,1764964288308,-500.0,0.00017534,2]
[396423643,1764964288319,-899.33,0.00017534,2]
[396423644,1764964288329,-500.0,0.00017534,2]
[396423645,1764964288339,-500.0,0.00017534,2]
[396423646,1764964288348,-500.0,0.00017534,2]
[396423647,1764964288358,-500.0,0.00017534,2]
[396423648,1764964288368,-1193.75,0.00017534,2]
[396423649,1764964288378,-500.0,0.00017534,2]
[396423650,1764964288388,-500.0,0.00017534,2]
[396423651,1764964288397,-500.0,0.00017534,2]
[396423652,1764964288407,-18224.67,0.00017534,2]
[396423653,1764964288417,-2555.22,0.00017534,2]
[396423654,1764964288427,-500.0,0.00017534,2]
[396423655,1764964288437,-500.0,0.00017534,2]
[396423656,1764964288447,-15992.22,0.00017534,2]
[396423657,1764964288457,-500.0,0.00017534,2]
[396423658,1764964288467,-500.0,0.00017534,2]
[396423659,1764964288477,-2246.86,0.00017534,2]
[396423660,1764964288487,-500.0,0.00017534,2]
[396423661,1764964288497,-500.0,0.00017534,2]
[396423662,1764964288507,-500.0,0.00017534,2]
[396423663,1764964288518,-1396.97,0.00017534,2]
[396423664,1764964288527,-699.92,0.00017534,2]
[396423665,1764964288537,-1327.48,0.00017534,2]
[396423666,1764964288547,-3223.39,0.00017534,2]
[396423667,1764964288557,-1347.5,0.00017534,2]
[396423668,1764964288566,-2513.49,0.00017534,2]
[396423669,1764964288576,-667.1,0.00017534,2]
[396423670,1764964288586,-500.0,0.00017534,2]
[396423671,1764964288596,-500.0,0.00017534,2]
[396423672,1764964288605,-500.0,0.00017534,2]
[396423673,1764964288615,-2175.03,0.00017534,2]
[396423674,1764964288625,-40156.73,0.00017534,2]
[396423675,1764964288634,-906.92,0.00017534,2]
[396423676,1764964288644,-500.0,0.00017534,2]
[396423677,1764964288654,-10167.34,0.00017534,2]
[396423678,1764964288664,-3602.82,0.00017534,2]
[396423679,1764964288674,-690.39,0.00017534,2]
[396423680,1764964288684,-871.12,0.00017534,2]
[396423681,1764964288694,-570.25,0.00017534,2]
[396423682,1764964288703,-3182.83,0.00017534,2]
[396423683,1764964288713,-500.0,0.00017534,2]
[396423684,1764964288723,-500.0,0.00017534,2]
[396423685,1764964288733,-500.0,0.00017534,2]
[396423686,1764964288743,-2410.62,0.00017534,2]
[396423687,1764964288754,-542.91915263,0.00017534,2]
[396423688,1764964288764,-500.0,0.00017534,2]
[396423689,1764964288774,-500.0,0.00017534,2]
[396423690,1764964288784,-2260.75,0.00017534,2]
[396423691,1764964288794,-1031.43,0.00017534,2]
[396423692,1764964288804,-500.0,0.00017534,2]
[396423693,1764964288814,-500.0,0.00017534,2]
[396423694,1764964288823,-1240.63,0.00017534,2]
[396423695,1764964288833,-500.0,0.00017534,2]
[396423696,1764964288842,-3147.39,0.00017534,2]
[396423697,1764964288852,-500.0,0.00017534,2]
[396423698,1764964288862,-535.52,0.00017534,2]
[396423699,1764964288872,-3754.05,0.00017534,2]
[396423700,1764964288882,-2393.17,0.00017534,2]
[396423701,1764964288891,-165.79867216,0.00017534,2]
[396423702,1764964288901,-640.85,0.00017534,2]
[396423703,1764964288911,-700.33,0.00017534,2]
[396423704,1764964288921,-2634.96,0.00017534,2]
[396423705,1764964288932,-500.0,0.00017534,2]
[396423706,1764964288942,-3889.17,0.00017534,2]
[396423707,1764964288952,-500.0,0.00017534,2]
[396423708,1764964288963,-500.0,0.00017534,2]
[396423709,1764964288973,-786.42,0.00017534,2]
[396423710,1764964289213,-500.0,0.00017534,2]
[396423711,1764964289223,-500.0,0.00017534,2]
[396423712,1764964289232,-1453.14,0.00017534,2]
[396423713,1764964289243,-500.0,0.00017534,2]
[396423714,1764964289253,-2259.44,0.00017534,2]
[396423715,1764964289262,-642.0,0.00017534,2]
[396423716,1764964289272,-500.0,0.00017534,2]
[396423717,1764964289281,-500.0,0.00017534,2]
[396423718,1764964289291,-7930.82,0.00017534,2]
[396423719,1764964289301,-500.0,0.00017534,2]
[396423720,1764964289310,-500.0,0.00017781,2]
[396423721,1764964289321,-500.0,0.00017781,2]
[396423722,1764964289331,-362.22282102,0.00017781,2]
[396423723,1764964289340,-151.0,0.00017781,2]
[396423724,1764964289351,-151.0,0.00017781,2]
[396423725,1764964289360,-151.0,0.00017781,2]
[396423726,1764964289369,-293.9389776,0.00017781,2]
[396423727,1764964289378,-151.0,0.00017781,2]
[396423728,1764964289390,-151.0,0.00017781,2]
[396423729,1764964289400,-151.0,0.00017781,2]
[396423730,1764964289410,-198.0,0.00017781,2]
[396423731,1764964289419,-151.0,0.00017781,2]
[396423732,1764964289428,-151.0,0.00017781,2]
[396423733,1764964289439,-199.42951541,0.00017781,2]
[396423734,1764964289449,-151.0,0.00017781,2]
[396423735,1764964289459,-151.0,0.00017781,2]
[396423736,1764964289469,-199.66764689,0.00017781,2]
[396423737,1764964289478,-151.0,0.00017781,2]
[396423738,1764964289487,-151.0,0.00017781,2]
[396423739,1764964289498,-198.0,0.00017781,2]
[396423740,1764964289508,-500.0,0.00017781,2]
[396423741,1764964289518,-500.0,0.00017781,2]
[396423742,1764964289527,-500.0,0.00017781,2]
[396423743,1764964289537,-259.48241277,0.00017781,2]
[396423744,1764964289547,-192.0,0.00017781,2]
[396423745,1764964289557,-500.0,0.00017781,2]
[396423746,1764964289566,-500.0,0.00017781,2]
[396423747,1764964289576,-500.0,0.00017781,2]
[396423748,1764964289585,-500.0,0.00017781,2]
[396423749,1764964289595,-500.0,0.00017781,2]
[396423750,1764964289604,-500.0,0.00017781,2]
[396423751,1764964289614,-500.0,0.00017781,2]
[396423752,1764964289623,-500.0,0.00017781,2]
[396423753,1764964289632,-500.0,0.00017781,2]
[396423754,1764964289641,-500.0,0.00017781,2]
[396423755,1764964289651,-535.08492276,0.00017781,2]
[396423756,1764964289661,-500.0,0.00017808,2]
[396423757,1764964289671,-500.0,0.00017808,2]
[396423758,1764964289680,-500.0,0.00017808,2]
[396423759,1764964289690,-500.0,0.00017808,2]
[396423760,1764964289699,-500.0,0.00017808,2]
[396423761,1764964289709,-500.0,0.00017808,2]
[396423762,1764964289719,-500.0,0.00017808,2]
[396423763,1764964289728,-500.0,0.00017808,2]
[396423764,1764964289738,-500.0,0.00017808,2]
[396423765,1764964289748,-500.0,0.00017808,2]
[396423766,1764964289758,-674.84,0.00017808,2]
[396423767,1764964289767,-759.28,0.00017808,2]
[396423768,1764964289776,-500.0,0.00017808,2]
[396423769,1764964289786,-821.01,0.00017808,2]
[396423770,1764964289795,-3248.83,0.00017808,2]
[396423771,1764964289805,-500.0,0.00017808,2]
[396423772,1764964289814,-500.0,0.00017808,2]
[396423773,1764964289824,-766.62,0.00017808,2]
[396423774,1764964289834,-596.14,0.00017808,2]
[396423775,1764964289843,-677.48,0.00017808,2]
[396423776,1764964289853,-500.0,0.00017808,2]
[396423777,1764964289863,-710.03,0.00017808,2]
[396423778,1764964289872,-500.0,0.00017808,2]
[396423779,1764964289883,-978.11,0.00017808,2]
[396423780,1764964289892,-500.0,0.00017808,2]
[396423781,1764964289901,-950.77,0.00017808,2]
[396423782,1764964289911,-2195.96,0.00017808,2]
[396423783,1764964289920,-500.0,0.00017808,2]
[396423784,1764964289930,-500.0,0.00017808,2]
[396423785,1764964289940,-831.34,0.00017808,2]
[396423786,1764964289949,-500.0,0.00017808,2]
[396423787,1764964289959,-609.85,0.00017808,2]
[396423788,1764964289969,-500.0,0.00017808,2]
[396423789,1764964289978,-1164.68,0.00017808,2]
[396423790,1764964289988,-500.0,0.00017808,2]
[396423791,1764964289998,-500.0,0.00017808,2]
[396423792,1764964290012,-768.78,0.00017808,2]
[396423793,1764964290022,-609.15,0.00017808,2]
[396423794,1764964290033,-500.0,0.00017808,2]
[396423795,1764964290043,-1330.04,0.00017808,2]
[396423796,1764964290053,-913.97,0.00017808,2]
[396423797,1764964290062,-210.4246303,0.00017808,2]
[396423798,1764964290072,-500.0,0.00017808,2]
[396423799,1764964290085,-500.0,0.00017808,2]
[396423800,1764964290095,-500.0,0.00017808,2]
[396423801,1764964290104,-738.1,0.00017808,2]
[396423802,1764964290114,-500.0,0.00017808,2]
[396423803,1764964290123,-1071.4,0.00017808,2]
[396423804,1764964290132,-1543.99,0.00017808,2]
[396423805,1764964290141,-400.01518007,0.00017808,2]
[396423806,1764964290151,-1862.41,0.00017808,2]
[396423807,1764964290161,-500.0,0.00017808,2]
[396423808,1764964290170,-500.0,0.00017808,2]
[396423809,1764964290179,-500.0,0.00017808,2]
[396423810,1764964290188,-939.06,0.00017808,2]
[396423811,1764964290198,-1733.31,0.00017808,2]
[396423812,1764964290207,-2719.16,0.00017808,2]
[396423813,1764964290217,-826.15,0.00017808,2]
[396423814,1764964290226,-500.0,0.00017808,2]
[396423815,1764964290236,-500.0,0.00017808,2]
[396423816,1764964290245,-1078.39,0.00017808,2]
[396423817,1764964290255,-708.58,0.00017808,2]
[396423818,1764964290265,-1771.78,0.00017808,2]
[396423819,1764964290275,-500.0,0.00017808,2]
[396423820,1764964290285,-500.0,0.00017808,2]
[396423821,1764964290294,-500.0,0.00017808,2]
[396423822,1764964290305,-500.0,0.00017808,2]
[396423823,1764964290314,-500.0,0.00017808,2]
[396423824,1764964290323,-500.0,0.00017808,2]
[396423825,1764964290333,-672.42,0.00017808,2]
[396423826,1764964290342,-874.07,0.00017808,2]
[396423827,1764964290351,-500.0,0.00017808,2]
[396423828,1764964290360,-500.0,0.00017808,2]
[396423829,1764964290369,-611.92,0.00017808,2]
[396423830,1764964290378,-2821.54,0.00017808,2]
[396423831,1764964290387,-500.0,0.00017808,2]
[396423832,1764964290396,-500.0,0.00017808,2]
[396423833,1764964290405,-500.0,0.00017808,2]
[396423834,1764964290414,-500.0,0.00017808,2]
[396423835,1764964290423,-500.0,0.00017808,2]
[396423836,1764964290433,-636.11,0.00017808,2]
[396423837,1764964290442,-971.51,0.00017808,2]
[396423838,1764964290453,-906.08,0.00017808,2]
[396423839,1764964290462,-500.0,0.00017808,2]
[396423840,1764964290471,-571.85,0.00017808,2]
[396423841,1764964290480,-205.73740133,0.00017808,2]
[396423842,1764964290492,-500.0,0.00017808,2]
[396423843,1764964290501,-1069.86,0.00017808,2]
[396423844,1764964290511,-500.0,0.00017808,2]
[396423845,1764964290522,-1462.76,0.00017808,2]
[396423846,1764964290533,-502.82,0.00017808,2]
[396423847,1764964290542,-500.0,0.00017808,2]
[396423848,1764964290552,-500.0,0.00017808,2]
[396423849,1764964290561,-2534.3,0.00017808,2]
[396423850,1764964290571,-500.0,0.00017808,2]
[396423851,1764964290582,-500.0,0.00017808,2]
[396423852,1764964290591,-500.0,0.00017808,2]
[396423853,1764964290600,-500.0,0.00017808,2]
[396423854,1764964290609,-647.83,0.00017808,2]
[396423855,1764964290618,-500.0,0.00017808,2]
[396423856,1764964290628,-1092.74,0.00017808,2]
[396423857,1764964290637,-500.0,0.00017808,2]
[396423858,1764964290645,-500.0,0.00017808,2]
[396423859,1764964290655,-500.0,0.00017808,2]
[396423860,1764964290664,-500.0,0.00017808,2]
[396423861,1764964290673,-1405.79,0.00017808,2]
[396423862,1764964290682,-1078.91,0.00017808,2]
[396423863,1764964290691,-500.0,0.00017808,2]
[396423864,1764964290701,-1311.8,0.00017808,2]
[396423865,1764964290711,-500.0,0.00017808,2]
[396423866,1764964290720,-1734.17,0.00017808,2]
[396423867,1764964290729,-698.12,0.00017808,2]
[396423868,1764964290739,-1866.07,0.00017808,2]
[396423869,1764964290748,-460.24274505,0.00017808,2]
[396423870,1764964290757,-500.0,0.00017808,2]
[396423871,1764964290767,-500.0,0.00017808,2]
[396423872,1764964290776,-1534.72,0.00017808,2]
[396423873,1764964290786,-524.96,0.00017808,2]
[396423874,1764964290795,-500.0,0.00017808,2]
[396423875,1764964290805,-500.0,0.00017808,2]
[396423876,1764964290814,-2060.56,0.00017808,2]
[396423877,1764964290823,-500.0,0.00017808,2]
[396423878,1764964290833,-356.5718659,0.00017808,2]
[396423879,1764964290842,-673.73,0.00017808,2]
[396423880,1764964290851,-701.23,0.00017808,2]
[396423881,1764964290860,-1698.62,0.00017808,2]
[396423882,1764964290869,-658.93,0.00017808,2]
[396423883,1764964290878,-500.0,0.00017808,2]
[396423884,1764964290887,-742.38,0.00017808,2]
[396423885,1764964290896,-747.63,0.00017808,2]
[396423886,1764964290905,-667.01,0.00017808,2]
[396423887,1764964290914,-500.0,0.00017808,2]
[396423888,1764964290924,-500.0,0.00017808,2]
[396423889,1764964290933,-500.0,0.00017808,2]
[396423890,1764964290943,-1151.69,0.00017808,2]
[396423891,1764964290951,-721.72,0.00017808,2]
[396423892,1764964290960,-500.0,0.00017808,2]
[396423893,1764964290971,-991.55,0.00017808,2]
[396423894,1764964290980,-500.0,0.00017808,2]
[396423895,1764964290990,-500.0,0.00017808,2]
[396423896,1764964291001,-596.6,0.00017808,2]
[396423897,1764964291011,-1963.89,0.00017808,2]
[396423898,1764964291020,-2056.09,0.00017808,2]
[396423899,1764964291029,-500.0,0.00017808,2]
[396423900,1764964291039,-500.0,0.00017808,2]
[396423901,1764964291050,-1932.03,0.00017808,2]
[396423902,1764964291059,-1925.2,0.00017808,2]
[396423903,1764964291068,-694.04,0.00017808,2]
[396423904,1764964291078,-1279.51,0.00017808,2]
[396423905,1764964291086,-500.0,0.00017808,2]
[396423906,1764964291095,-552.82,0.00017808,2]
[396423907,1764964291104,-1066.32,0.00017808,2]
[396423908,1764964291113,-500.0,0.00017808,2]
[396423909,1764964291122,-1282.6,0.00017808,2]
[396423910,1764964291131,-500.0,0.00017808,2]
[396423911,1764964291141,-1077.48,0.00017808,2]
[396423912,1764964291150,-500.0,0.00017808,2]
[396423913,1764964291159,-500.0,0.00017808,2]
[396423914,1764964291168,-457.76723303,0.00017808,2]
[396423915,1764964291178,-500.0,0.00017808,2]
[396423916,1764964291187,-1056.93,0.00017808,2]
[396423917,1764964291196,-1405.18,0.00017808,2]
[396423918,1764964291205,-798.61,0.00017808,2]
[396423919,1764964291216,-419.92666173,0.00017808,2]
[396423920,1764964291225,-500.0,0.00017808,2]
[396423921,1764964291235,-1114.7,0.00017808,2]
[396423922,1764964291244,-867.37,0.00017808,2]
[396423923,1764964291253,-500.0,0.00017808,2]
[396423924,1764964291263,-773.03,0.00017808,2]
[396423925,1764964291272,-2394.89,0.00017808,2]
[396423926,1764964291281,-500.4,0.00017808,2]
[396423927,1764964291291,-500.0,0.00017808,2]
[396423928,1764964291301,-1140.55,0.00017808,2]
[396423929,1764964291310,-507.01,0.00017808,2]
[396423930,1764964291319,-500.0,0.00017808,2]
[396423931,1764964291328,-500.0,0.00017808,2]
[396423932,1764964291337,-753.55,0.00017808,2]
[396423933,1764964291347,-500.0,0.00017808,2]
[396423934,1764964291355,-500.0,0.00017808,2]
[396423935,1764964291365,-500.0,0.00017808,2]
[396423936,1764964291374,-1160.45,0.00017808,2]
[396423937,1764964291383,-500.0,0.00017808,2]
[396423938,1764964291393,-801.76,0.00017808,2]
[396423939,1764964291402,-542.43,0.00017808,2]
[396423940,1764964291411,-2713.85,0.00017808,2]
[396423941,1764964291420,-500.0,0.00017808,2]
[396423942,1764964291429,-914.46,0.00017808,2]
[396423943,1764964291438,-533.59264217,0.00017808,2]
[396423944,1764964291448,-500.0,0.00017808,2]
[396423945,1764964291457,-4419.03,0.00017808,2]
[396423946,1764964291469,-500.0,0.00017808,2]
[396423947,1764964291564,-526.41,0.00017808,2]
[396423948,1764964291573,-588.91,0.00017808,2]
[396423949,1764964291583,-981.61,0.00017808,2]
[396423950,1764964291592,-562.03,0.00017808,2]
[396423951,1764964291602,-1146.46,0.00017808,2]
[396423952,1764964291611,-500.0,0.00017808,2]
[396423953,1764964291620,-1195.63,0.00017808,2]
[396423954,1764964291629,-500.0,0.00017808,2]
[396423955,1764964291638,-500.0,0.00017808,2]
[396423956,1764964291647,-2202.96,0.00017808,2]
[396423957,1764964291656,-500.0,0.00017808,2]
[396423958,1764964291666,-500.0,0.00017808,2]
[396423959,1764964291675,-769.64,0.00017808,2]
[396423960,1764964291684,-2092.31,0.00017808,2]
[396423961,1764964291693,-813.86,0.00017808,2]
[396423962,1764964291703,-530.06,0.00017808,2]
[396423963,1764964291712,-500.0,0.00017808,2]
[396423964,1764964291721,-708.5,0.00017808,2]
[396423965,1764964291731,-500.0,0.00017808,2]
[396423966,1764964291741,-500.0,0.00017808,2]
[396423967,1764964291751,-528.45,0.00017808,2]
[396423968,1764964291761,-532.79,0.00017808,2]
[396423969,1764964291770,-500.0,0.00017808,2]
[396423970,1764964291780,-1131.46,0.00017808,2]
[396423971,1764964291789,-1131.9,0.00017808,2]
[396423972,1764964291799,-500.0,0.00017808,2]
[396423973,1764964291808,-500.0,0.00017808,2]
[396423974,1764964291818,-500.0,0.00017808,2]
[396423975,1764964291827,-500.0,0.00017808,2]
[396423976,1764964291837,-608.86,0.00017808,2]
[396423977,1764964291847,-880.35,0.00017808,2]
[396423978,1764964291857,-784.6,0.00017808,2]
[396423979,1764964291867,-500.0,0.00017808,2]
[396423980,1764964291876,-589.81,0.00017808,2]
[396423981,1764964291887,-500.0,0.00017808,2]
[396423982,1764964291896,-500.0,0.00017808,2]
[396423983,1764964291905,-500.0,0.00017808,2]
[396423984,1764964291914,-537.52,0.00017808,2]
[396423985,1764964291923,-1014.04,0.00017808,2]
[396423986,1764964291932,-2220.46,0.00017808,2]
[396423987,1764964291941,-2190.66,0.00017808,2]
[396423988,1764964291951,-1158.75,0.00017808,2]
[396423989,1764964291961,-500.0,0.00017808,2]
[396423990,1764964291972,-500.0,0.00017808,2]
[396423991,1764964291981,-681.06,0.00017808,2]
[396423992,1764964291990,-500.0,0.00017808,2]
[396423993,1764964292001,-2115.78,0.00017808,2]
[396423994,1764964292011,-500.0,0.00017808,2]
[396423995,1764964292021,-766.35,0.00017808,2]
[396423996,1764964292030,-966.12,0.00017808,2]
[396423997,1764964292039,-914.28,0.00017808,2]
[396423998,1764964292049,-982.55,0.00017808,2]
[396423999,1764964292059,-500.0,0.00017808,2]
[396424000,1764964292068,-500.0,0.00017808,2]
[396424001,1764964292079,-500.0,0.00017808,2]
[396424002,1764964292088,-500.0,0.00017808,2]
[396424003,1764964292097,-153.58514753,0.00017808,2]
[396424004,1764964292106,-936.35,0.00017808,2]
[396424005,1764964292115,-500.0,0.00017808,2]
[396424006,1764964292124,-500.0,0.00017808,2]
[396424007,1764964292133,-500.0,0.00017808,2]
[396424008,1764964292142,-500.0,0.00017808,2]
[396424009,1764964292151,-500.0,0.00017808,2]
[396424010,1764964292160,-749.63,0.00017808,2]
[396424011,1764964292169,-1641.15,0.00017808,2]
[396424012,1764964292178,-1076.77,0.00017808,2]
[396424013,1764964292187,-500.0,0.00017808,2]
[396424014,1764964292196,-500.0,0.00017808,2]
[396424015,1764964292205,-500.0,0.00017808,2]
[396424016,1764964292215,-500.0,0.00017808,2]
[396424017,1764964292224,-603.68,0.00017808,2]
[396424018,1764964292234,-500.0,0.00017808,2]
[396424019,1764964292243,-698.96,0.00017808,2]
[396424020,1764964292254,-1666.18,0.00017808,2]
[396424021,1764964292263,-671.97,0.00017808,2]
[396424022,1764964292273,-502.19,0.00017808,2]
[396424023,1764964292282,-500.0,0.00017808,2]
[396424024,1764964292291,-2087.17,0.00017808,2]
[396424025,1764964292301,-500.0,0.00017808,2]
[396424026,1764964292310,-500.0,0.00017808,2]
[396424027,1764964292319,-516.65,0.00017808,2]
[396424028,1764964292328,-500.0,0.00017808,2]
[396424029,1764964292338,-500.0,0.00017808,2]
[396424030,1764964292347,-2037.83,0.00017808,2]
[396424031,1764964292355,-501.13,0.00017808,2]
[396424032,1764964292364,-500.0,0.00017808,2]
[396424033,1764964292373,-571.62,0.00017808,2]
[396424034,1764964292382,-500.0,0.00017808,2]
[396424035,1764964292392,-1758.23,0.00017808,2]
[396424036,1764964292402,-4101.23,0.00017808,2]
[396424037,1764964292411,-1128.95,0.00017808,2]
[396424038,1764964292420,-500.0,0.00017808,2]
[396424039,1764964292429,-735.18,0.00017808,2]
[396424040,1764964292439,-2336.08,0.00017808,2]
[396424041,1764964292448,-656.91,0.00017808,2]
[396424042,1764964292457,-500.0,0.00017808,2]
[396424043,1764964292466,-942.22,0.00017808,2]
[396424044,1764964292476,-606.67,0.00017808,2]
[396424045,1764964292485,-500.0,0.00017808,2]
[396424046,1764964292494,-866.26,0.00017808,2]
[396424047,1764964292503,-500.0,0.00017808,2]
[396424048,1764964292512,-500.0,0.00017808,2]
[396424049,1764964292523,-500.13,0.00017808,2]
[396424050,1764964292532,-500.0,0.00017808,2]
[396424051,1764964292541,-500.0,0.00017808,2]
[396424052,1764964292550,-500.0,0.00017808,2]
[396424053,1764964292559,-500.0,0.00017808,2]
[396424054,1764964292568,-748.38,0.00017808,2]
[396424055,1764964292577,-784.77,0.00017808,2]
[396424056,1764964292586,-500.0,0.00017808,2]
[396424057,1764964292595,-3000.65,0.00017808,2]
[396424058,1764964292604,-525.35,0.00017808,2]
[396424059,1764964292613,-500.0,0.00017808,2]
[396424060,1764964292622,-632.24,0.00017808,2]
[396424061,1764964292631,-500.0,0.00017808,2]
[396424062,1764964292641,-734.19,0.00017808,2]
[396424063,1764964292649,-500.0,0.00017808,2]
[396424064,1764964292658,-500.0,0.00017808,2]
[396424065,1764964292667,-1121.55,0.00017808,2]
[396424066,1764964292677,-4195.91,0.00017808,2]
[396424067,1764964292687,-500.0,0.00017808,2]
[396424068,1764964292696,-1169.87,0.00017808,2]
[396424069,1764964292705,-500.0,0.00017808,2]
[396424070,1764964292715,-500.0,0.00017808,2]
[396424071,1764964292724,-500.0,0.00017808,2]
[396424072,1764964292734,-1721.78,0.00017808,2]
[396424073,1764964292743,-797.93,0.00017808,2]
[396424074,1764964292753,-500.0,0.00017808,2]
[396424075,1764964292762,-500.0,0.00017808,2]
[396424076,1764964292772,-3352.24,0.00017808,2]
[396424077,1764964292780,-701.25,0.00017808,2]
[396424078,1764964292790,-500.0,0.00017808,2]
[396424079,1764964292799,-1865.02,0.00017808,2]
[396424080,1764964292808,-500.0,0.00017808,2]
[396424081,1764964292817,-547.35,0.00017808,2]
[396424082,1764964292827,-1140.86,0.00017808,2]
[396424083,1764964292835,-1061.3,0.00017808,2]
[396424084,1764964292844,-581.3,0.00017808,2]
[396424085,1764964292853,-561.53,0.00017808,2]
[396424086,1764964292862,-1248.52,0.00017808,2]
[396424087,1764964292871,-500.0,0.00017808,2]
[396424088,1764964292880,-565.64,0.00017808,2]
[396424089,1764964292889,-500.0,0.00017808,2]
[396424090,1764964292899,-1569.73,0.00017808,2]
[396424091,1764964292908,-1818.55,0.00017808,2]
[396424092,1764964292917,-522.2,0.00017808,2]